fUST/lending_fUST_20250515
["ID","MTS","AMOUNT","RATE_DAILY","PERIOD"]
[361140878,1747302641312,-400.91451024,0.00016898,2]
[361140880,1747302641321,-450.0,0.00016898,2]
[361140882,1747302641331,-503.87742256,0.00016898,2]
[361140884,1747302641340,-400.53948181,0.00016898,2]
[361140887,1747302641350,-402.01186613,0.00016898,2]
[361140889,1747302641359,-404.14050957,0.00016898,2]
[361140890,1747302641369,-401.08444501,0.00016898,2]
[361140893,1747302641378,-450.0,0.00016898,2]
[361140895,1747302641388,-401.97363187,0.00016898,2]
[361140897,1747302641397,-450.0,0.00016898,2]
[361140899,1747302641406,-401.57699718,0.00016898,2]
[361140901,1747302641416,-450.0,0.00016898,2]
[361140903,1747302641426,-450.0,0.00016898,2]
[361140904,1747302641436,-450.0,0.00016898,2]
[361140907,1747302641445,-450.0,0.00016898,2]
[361140909,1747302641455,-450.0,0.00016898,2]
[361140911,1747302641464,-450.0,0.00016898,2]
[361140913,1747302641473,-500.43603256,0.00016898,2]
[361140914,1747302641483,-277.27178343,0.00016898,2]
[361140917,1747302641492,-450.0,0.00016898,2]
[361140919,1747302641502,-448.36412873,0.00016898,2]
[361140921,1747302641511,-450.0,0.00016898,2]
[361140923,1747302641521,-450.0,0.00016898,2]
[361140925,1747302641530,-450.0,0.00016898,2]
[361140927,1747302641539,-450.0,0.00016898,2]
[361140928,1747302641548,-450.0,0.00016898,2]
[361140930,1747302641558,-402.65010271,0.00016898,2]
[361140932,1747302641567,-450.0,0.00016898,2]
[361140935,1747302641577,-402.13872998,0.00016898,2]
[361140937,1747302641586,-450.0,0.00016898,2]
[361140938,1747302641596,-450.0,0.00016898,2]
[361140940,1747302641605,-483.56291942,0.00016898,2]
[361140943,1747302641615,-509.58259274,0.00016898,2]
[361140945,1747302641624,-400.60979183,0.00016898,2]
[361140946,1747302641633,-400.62566055,0.00016898,2]
[361140949,1747302641642,-400.92012363,0.00016898,2]
[361140951,1747302641652,-450.0,0.00016898,2]
[361140953,1747302641661,-486.09814407,0.00016898,2]
[361140955,1747302641671,-400.91268128,0.00016898,2]
[361140957,1747302641681,-401.34113592,0.00016898,2]
[361140959,1747302641690,-401.70777653,0.00016898,2]
[361140961,1747302641699,-409.02315553,0.00016898,2]
[361140963,1747302641711,-401.63775207,0.00016898,2]
[361140965,1747302641720,-450.0,0.00016898,2]
[361140967,1747302641731,-401.31290122,0.00016898,2]
[361140969,1747302641740,-450.0,0.00016898,2]
[361140971,1747302641749,-403.13312777,0.00016898,2]
[361140973,1747302641759,-450.0,0.00016898,2]
[361140975,1747302641768,-401.28251717,0.00016898,2]
[361140977,1747302641778,-403.44347559,0.00016898,2]
[361140979,1747302641787,-402.04607661,0.00016898,2]
[361140981,1747302641796,-450.0,0.00016898,2]
[361140983,1747302641805,-402.08733713,0.00016898,2]
[361140985,1747302641814,-401.50317887,0.00016898,2]
[361140987,1747302641824,-450.0,0.00016898,2]
[361140989,1747302641833,-478.87737622,0.00016898,2]
[361140991,1747302641842,-450.0,0.00016898,2]
[361140993,1747302641852,-450.0,0.00016898,2]
[361140995,1747302641862,-402.38233488,0.00016898,2]
[361140997,1747302641871,-402.22366325,0.00016898,2]
[361140999,1747302641880,-401.23941587,0.00016898,2]
[361141001,1747302641889,-1003.30861329,0.00016898,2]
[361141003,1747302641899,-401.38747886,0.00016898,2]
[361141005,1747302641909,-504.06427936,0.00016898,2]
[361141007,1747302641918,-402.05383914,0.00016898,2]
[361141009,1747302641928,-401.9682729,0.00016898,2]
[361141011,1747302641937,-206.73654446,0.00016898,2]
[361141013,1747302641947,-450.0,0.00016898,2]
[361141016,1747302641957,-400.43357852,0.00016898,2]
[361141019,1747302641976,-100.23064137,0.00016898,2]
[361141293,1747302645005,-349.76935863,0.00016898,2]
[361141294,1747302645015,-401.79667671,0.00016898,2]
[361141295,1747302645025,-450.0,0.00016898,2]
[361141296,1747302645035,-506.35665012,0.00016898,2]
[361141297,1747302645045,-450.0,0.00016898,2]
[361141298,1747302645055,-450.0,0.00016898,2]
[361141299,1747302645064,-450.0,0.00016898,2]
[361141300,1747302645074,-425.08583795,0.00016898,2]
[361141301,1747302645083,-450.0,0.00016898,2]
[361141302,1747302645093,-402.31935392,0.00016898,2]
[361141303,1747302645102,-404.49785513,0.00016898,2]
[361141304,1747302645111,-464.49374381,0.00016898,2]
[361141305,1747302645121,-450.0,0.00016898,2]
[361141306,1747302645131,-405.08729327,0.00016898,2]
[361141307,1747302645141,-401.31931123,0.00016898,2]
[361141308,1747302645150,-400.42782848,0.00016898,2]
[361141309,1747302645160,-365.57899307,0.00016898,2]
[361141310,1747302645169,-402.00312491,0.00016898,2]
[361141311,1747302645180,-401.4289679,0.00016898,2]
[361141312,1747302645193,-450.0,0.00016898,2]
[361141313,1747302645307,-400.7588598,0.00016898,2]
[361141314,1747302645317,-450.0,0.00016898,2]
[361141315,1747302645326,-450.0,0.00016898,2]
[361141317,1747302645336,-450.0,0.00016898,2]
[361141318,1747302645346,-450.0,0.00016898,2]
[361141319,1747302645355,-450.0,0.00016898,2]
[361141320,1747302645365,-402.0455979,0.00016898,2]
[361141322,1747302645375,-450.0,0.00016898,2]
[361141323,1747302645384,-402.66735484,0.00016898,2]
[361141325,1747302645393,-400.86206516,0.00016898,2]
[361141328,1747302645403,-400.78012797,0.00016898,2]
[361141331,1747302645412,-450.0,0.00016898,2]
[361141333,1747302645422,-450.0,0.00016898,2]
[361141336,1747302645432,-472.34929696,0.00016898,2]
[361141338,1747302645442,-162.33793996,0.00016898,2]
[361141340,1747302645451,-450.0,0.00016898,2]
[361141342,1747302645460,-450.0,0.00016898,2]
[361141344,1747302645470,-450.0,0.00016898,2]
[361141347,1747302645480,-450.0,0.00016898,2]
[361141349,1747302645489,-400.63538985,0.00016898,2]
[361141351,1747302645499,-386.5868567,0.00016898,2]
[361141353,1747302645508,-450.0,0.00016898,2]
[361141355,1747302645517,-450.0,0.00016898,2]
[361141357,1747302645528,-450.0,0.00016898,2]
[361141359,1747302645538,-450.0,0.00016898,2]
[361141361,1747302645548,-450.0,0.00016898,2]
[361141363,1747302645557,-450.0,0.00016898,2]
[361141365,1747302645567,-62.81415377,0.00016898,2]
[361141368,1747302645585,-342.44385381,0.00016898,2]
[361141370,1747302645595,-401.15783761,0.00016898,2]
[361141372,1747302645604,-401.95841171,0.00016898,2]
[361141374,1747302645615,-1.94649687,0.00016898,2]
[361141376,1747302645627,-448.05350313,0.00016898,2]
[361141378,1747302645636,-401.71292258,0.00016898,2]
[361141380,1747302645646,-450.0,0.00016898,2]
[361141382,1747302645655,-450.0,0.00016898,2]
[361141384,1747302645665,-401.09026583,0.00016898,2]
[361141386,1747302645674,-450.0,0.00016898,2]
[361141388,1747302645684,-450.0,0.00016898,2]
[361141390,1747302645693,-516.03561779,0.00016898,2]
[361141392,1747302645703,-401.00883828,0.00016898,2]
[361141394,1747302645713,-418.93908436,0.00016898,2]
[361141396,1747302645724,-562.13611587,0.00016898,2]
[361141398,1747302645732,-235.076269,0.00016898,2]
[361141400,1747302645743,-403.03173321,0.00016898,2]
[361141402,1747302645752,-400.94702032,0.00016898,2]
[361141404,1747302645762,-401.08852824,0.00016898,2]
[361141406,1747302645771,-332.16057331,0.00016898,2]
[361141440,1747302646085,-1114.66082966,0.00016704,2]
[361141445,1747302646117,-3885.33917034,0.00016704,2]
[361141447,1747302646127,-854.59,0.00016895,2]
[361141449,1747302646136,-69.10966085,0.00016898,2]
[361141451,1747302646145,-406.08843622,0.00016898,2]
[361141453,1747302646154,-524.82,0.00016898,2]
[361141454,1747302646165,-450.0,0.00016898,2]
[361141456,1747302646175,-450.0,0.00016898,2]
[361141459,1747302646191,-450.0,0.00016898,2]
[361141460,1747302646201,-450.0,0.00016898,2]
[361141462,1747302646210,-450.0,0.00016898,2]
[361141464,1747302646219,-450.0,0.00016898,2]
[361141466,1747302646228,-403.17108912,0.00016898,2]
[361141468,1747302646237,-450.0,0.00016898,2]
[361141470,1747302646246,-392.1101634,0.00016898,2]
[361141472,1747302646256,-450.0,0.00016898,2]
[361141474,1747302646265,-401.78379711,0.00016898,2]
[361141476,1747302646275,-264.53205961,0.00016898,2]
[361141478,1747302646284,-410.19159187,0.00016898,2]
[361141480,1747302646294,-400.41460849,0.00016898,2]
[361141482,1747302646303,-542.44075631,0.00016898,2]
[361141484,1747302646311,-403.40278933,0.00016898,2]
[361141486,1747302646320,-400.66158087,0.00016898,2]
[361141488,1747302646330,-450.0,0.00016898,2]
[361141490,1747302646339,-405.60115723,0.00016898,2]
[361141492,1747302646348,-450.0,0.00016898,2]
[361141493,1747302646358,-450.0,0.00016898,2]
[361141494,1747302646367,-450.0,0.00016898,2]
[361141495,1747302646377,-400.59882471,0.00016898,2]
[361141496,1747302646386,-450.0,0.00016898,2]
[361141497,1747302646395,-450.0,0.00016898,2]
[361141498,1747302646405,-400.99236051,0.00016898,2]
[361141499,1747302646414,-405.76619638,0.00016898,2]
[361141500,1747302646424,-450.0,0.00016898,2]
[361141501,1747302646436,-450.0,0.00016898,2]
[361141502,1747302646445,-450.0,0.00016898,2]
[361141503,1747302646455,-450.0,0.00016898,2]
[361141504,1747302646465,-450.0,0.00016898,2]
[361141506,1747302646474,-450.0,0.00016898,2]
[361141508,1747302646483,-1098.12,0.00016898,2]
[361141510,1747302646492,-127.15060948,0.00016898,2]
[361141526,1747302646670,-350.21161888,0.00016898,2]
[361141528,1747302646688,-394.5536831,0.00016898,2]
[361142091,1747303120732,-246.82081551,0.000157,2]
[361142094,1747303508603,393.25372164,0.0002,120]
[361142095,1747303541134,-5000.0,0.00015543,2]
[361142096,1747303541155,-1125.70169631,0.000157,2]
[361142097,1747303593294,290.4882994,0.00013699,2]
[361142102,1747303759173,-5000.0,0.00015234,2]
[361142103,1747303759194,-538.47748818,0.000157,2]
[361142104,1747303759216,-621.39282511,0.00015886,2]
[361142129,1747303832147,-5000.0,0.00015727,2]
[361142131,1747303832157,-300.0,0.00015886,2]
[361142133,1747303832167,-300.0,0.00015887,2]
[361142135,1747303832176,-1200.0,0.00015887,2]
[361142137,1747303832186,-4179.694507,0.00015888,2]
[361142139,1747303832196,-215.772639,0.00015895,2]
[361142141,1747303832206,-450.0,0.00016814,2]
[361142143,1747303832215,-271.75640387,0.00016814,2]
[361142145,1747303832225,-450.0,0.00016814,2]
[361142147,1747303832234,-450.0,0.00016814,2]
[361142149,1747303832243,-450.0,0.00016814,2]
[361142151,1747303832253,-450.0,0.00016814,2]
[361142153,1747303832263,-450.0,0.00016814,2]
[361142155,1747303832273,-450.0,0.00016814,2]
[361142157,1747303832283,-431.28407692,0.00016814,2]
[361142159,1747303832293,-511.59821243,0.00016814,2]
[361142161,1747303832302,-450.0,0.00016814,2]
[361142163,1747303832312,-583.98,0.00016814,2]
[361142165,1747303832322,-450.0,0.00016814,2]
[361142167,1747303832331,-450.0,0.00016814,2]
[361142169,1747303832341,-756.09,0.00016814,2]
[361142171,1747303832350,-450.0,0.00016814,2]
[361142173,1747303832360,-2058.18,0.00016814,2]
[361142175,1747303832369,-450.0,0.00016814,2]
[361142177,1747303832379,-401.45149192,0.00016814,2]
[361142179,1747303832389,-450.0,0.00016814,2]
[361142181,1747303832398,-400.68938481,0.00016814,2]
[361142183,1747303832407,-450.0,0.00016814,2]
[361142185,1747303832417,-2001.97286395,0.00016814,2]
[361142187,1747303832427,-450.0,0.00016814,2]
[361142189,1747303832437,-450.0,0.00016814,2]
[361142191,1747303832446,-450.0,0.00016814,2]
[361142193,1747303832456,-450.0,0.00016814,2]
[361142195,1747303832466,-450.0,0.00016814,2]
[361142197,1747303832475,-400.51913425,0.00016814,2]
[361142199,1747303832485,-493.5147543,0.00016814,2]
[361142201,1747303832494,-450.0,0.00016814,2]
[361142203,1747303832503,-450.0,0.00016814,2]
[361142205,1747303832513,-450.0,0.00016814,2]
[361142207,1747303832522,-450.0,0.00016814,2]
[361142209,1747303832533,-450.0,0.00016814,2]
[361142211,1747303832542,-2509.81,0.00016814,2]
[361142213,1747303832552,-450.0,0.00016814,2]
[361142215,1747303832561,-400.72240641,0.00016814,2]
[361142217,1747303832570,-450.0,0.00016814,2]
[361142219,1747303832580,-450.0,0.00016814,2]
[361142221,1747303832590,-402.33354129,0.00016814,2]
[361142223,1747303832599,-450.0,0.00016814,2]
[361142225,1747303832608,-450.0,0.00016815,2]
[361142227,1747303832617,-400.0,0.00016815,2]
[361142229,1747303832627,-450.0,0.00016815,2]
[361142231,1747303832637,-450.0,0.00016815,2]
[361142233,1747303832646,-566.41464912,0.00016815,2]
[361142235,1747303832655,-450.0,0.00016815,2]
[361142237,1747303832665,-450.0,0.00016815,2]
[361142239,1747303832673,-450.0,0.00016815,2]
[361142241,1747303832683,-450.0,0.00016815,2]
[361142242,1747303832692,-1098.48,0.00016815,2]
[361142244,1747303832701,-6348.46,0.00016815,2]
[361142246,1747303832711,-1249.68,0.00016815,2]
[361142248,1747303832724,-450.0,0.00016815,2]
[361142250,1747303832733,-450.0,0.00016815,2]
[361142252,1747303832742,-450.0,0.00016815,2]
[361142254,1747303832752,-450.0,0.00016815,2]
[361142256,1747303832763,-450.0,0.00016815,2]
[361142258,1747303832772,-2409.61,0.00016815,2]
[361142260,1747303832781,-450.0,0.00016815,2]
[361142262,1747303832792,-4449.11,0.00016815,2]
[361142264,1747303832801,-969.74,0.00016815,2]
[361142266,1747303832811,-450.0,0.00016815,2]
[361142268,1747303832820,-603.18,0.00016815,2]
[361142270,1747303832829,-450.0,0.00016815,2]
[361142272,1747303832839,-492.34,0.00016815,2]
[361142273,1747303832848,-1683.33,0.00016815,2]
[361142275,1747303832858,-450.0,0.00016815,2]
[361142277,1747303832868,-450.0,0.00016815,2]
[361142279,1747303832878,-450.0,0.00016815,2]
[361142281,1747303832890,-450.0,0.00016815,2]
[361142283,1747303832899,-450.0,0.00016815,2]
[361142285,1747303832909,-612.18,0.00016815,2]
[361142287,1747303832920,-450.0,0.00016815,2]
[361142289,1747303832929,-450.0,0.00016815,2]
[361142291,1747303832939,-916.43,0.00016815,2]
[361142293,1747303832949,-450.0,0.00016815,2]
[361142295,1747303832959,-450.0,0.00016815,2]
[361142297,1747303832969,-748.82,0.00016815,2]
[361142299,1747303832978,-450.0,0.00016815,2]
[361142301,1747303832988,-450.0,0.00016815,2]
[361142303,1747303832997,-450.0,0.00016815,2]
[361142305,1747303833007,-450.0,0.00016815,2]
[361142307,1747303833016,-450.0,0.00016815,2]
[361142309,1747303833026,-450.0,0.00016815,2]
[361142311,1747303833036,-450.0,0.00016815,2]
[361142313,1747303833046,-401.65517336,0.00016815,2]
[361142315,1747303833056,-450.0,0.00016815,2]
[361142317,1747303833066,-450.0,0.00016815,2]
[361142319,1747303833077,-450.0,0.00016815,2]
[361142321,1747303833087,-609.73,0.00016815,2]
[361142323,1747303833097,-583.12,0.00016815,2]
[361142325,1747303833106,-728.96,0.00016815,2]
[361142327,1747303833116,-813.32,0.00016815,2]
[361142329,1747303833127,-450.0,0.00016815,2]
[361142331,1747303833139,-450.0,0.00016815,2]
[361142333,1747303833151,-500.0,0.00016815,2]
[361142335,1747303833161,-5000.0,0.00016816,2]
[361142337,1747303833170,-207.4,0.00016816,2]
[361142339,1747303833180,-5000.0,0.00016816,2]
[361142341,1747303833190,-5000.0,0.00016816,2]
[361142343,1747303833200,-5000.0,0.00016816,2]
[361142345,1747303833210,-501.664656,0.00016873,2]
[361142347,1747303833220,-501.09284339,0.00016873,2]
[361142349,1747303833229,-500.0,0.00016873,2]
[361142351,1747303833239,-500.0,0.00016873,2]
[361142352,1747303833249,-611.53182813,0.00016891,2]
[361142353,1747303833258,-500.0,0.00016891,2]
[361142354,1747303833268,-500.0,0.00016891,2]
[361142355,1747303833278,-511.49199161,0.00016891,2]
[361142356,1747303833288,-500.0,0.00016891,2]
[361142357,1747303833297,-500.0,0.00016891,2]
[361142358,1747303833307,-500.0,0.00016891,2]
[361142359,1747303833316,-500.0,0.00016891,2]
[361142360,1747303833326,-500.0,0.00016891,2]
[361142361,1747303833335,-500.0,0.00016891,2]
[361142362,1747303833344,-583.12,0.00016891,2]
[361142363,1747303833354,-583.12,0.00016891,2]
[361142364,1747303833364,-450.0,0.00016892,2]
[361142365,1747303833374,-450.0,0.00016892,2]
[361142366,1747303833384,-450.0,0.00016892,2]
[361142367,1747303833394,-450.0,0.00016892,2]
[361142368,1747303833403,-450.0,0.00016892,2]
[361142369,1747303833413,-450.0,0.00016892,2]
[361142370,1747303833422,-450.0,0.00016892,2]
[361142371,1747303833432,-450.0,0.00016892,2]
[361142372,1747303833442,-450.0,0.00016892,2]
[361142373,1747303833451,-450.0,0.00016892,2]
[361142374,1747303833461,-450.0,0.00016892,2]
[361142375,1747303833472,-450.0,0.00016892,2]
[361142376,1747303833481,-450.0,0.00016892,2]
[361142377,1747303833491,-450.0,0.00016892,2]
[361142379,1747303833501,-506.16981647,0.00016892,2]
[361142381,1747303833510,-450.0,0.00016892,2]
[361142383,1747303833520,-450.0,0.00016892,2]
[361142385,1747303833530,-450.0,0.00016892,2]
[361142387,1747303833540,-329.05066669,0.00016892,2]
[361142389,1747303833549,-450.0,0.00016892,2]
[361142391,1747303833559,-450.0,0.00016892,2]
[361142393,1747303833569,-400.73261571,0.00016892,2]
[361142395,1747303833579,-450.0,0.00016892,2]
[361142396,1747303833588,-450.0,0.00016892,2]
[361142397,1747303833598,-450.0,0.00016892,2]
[361142398,1747303833608,-450.0,0.00016892,2]
[361142399,1747303833617,-450.0,0.00016892,2]
[361142400,1747303833627,-450.0,0.00016892,2]
[361142401,1747303833637,-450.0,0.00016892,2]
[361142402,1747303833647,-450.0,0.00016892,2]
[361142403,1747303833656,-450.0,0.00016892,2]
[361142404,1747303833666,-450.0,0.00016892,2]
[361142405,1747303833675,-450.0,0.00016892,2]
[361142406,1747303833685,-450.0,0.00016892,2]
[361142407,1747303833695,-450.0,0.00016892,2]
[361142408,1747303833704,-400.73752787,0.00016892,2]
[361142409,1747303833714,-1000.0,0.00016892,2]
[361142410,1747303833728,-450.0,0.00016892,2]
[361142411,1747303833737,-450.0,0.00016892,2]
[361142412,1747303833746,-450.0,0.00016892,2]
[361142413,1747303833756,-450.0,0.00016892,2]
[361142414,1747303833767,-450.0,0.00016892,2]
[361142415,1747303833777,-450.0,0.00016892,2]
[361142416,1747303833787,-450.0,0.00016892,2]
[361142417,1747303833797,-450.0,0.00016892,2]
[361142418,1747303833807,-450.0,0.00016892,2]
[361142419,1747303833817,-450.0,0.00016892,2]
[361142420,1747303833827,-450.0,0.00016892,2]
[361142421,1747303833837,-450.0,0.00016892,2]
[361142422,1747303833847,-450.0,0.00016892,2]
[361142423,1747303833856,-450.0,0.00016892,2]
[361142424,1747303833866,-450.0,0.00016892,2]
[361142425,1747303833876,-450.0,0.00016892,2]
[361142426,1747303833886,-450.0,0.00016892,2]
[361142427,1747303833896,-450.0,0.00016892,2]
[361142428,1747303833906,-450.0,0.00016892,2]
[361142429,1747303833915,-450.0,0.00016892,2]
[361142430,1747303833925,-450.0,0.00016892,2]
[361142431,1747303833935,-450.0,0.00016892,2]
[361142432,1747303833945,-450.0,0.00016892,2]
[361142433,1747303833955,-400.0,0.00016892,2]
[361142434,1747303833965,-450.0,0.00016892,2]
[361142435,1747303833975,-450.0,0.00016892,2]
[361142438,1747303834083,-168.62728775,0.00016892,2]
[361142439,1747303834094,-450.0,0.00016892,2]
[361142440,1747303834104,-450.0,0.00016892,2]
[361142441,1747303834114,-450.0,0.00016892,2]
[361142442,1747303834126,-400.0,0.00016892,2]
[361142443,1747303834136,-450.0,0.00016892,2]
[361142444,1747303834146,-450.0,0.00016892,2]
[361142445,1747303834155,-450.0,0.00016892,2]
[361142446,1747303834166,-450.0,0.00016892,2]
[361142447,1747303834176,-1246.2,0.00016892,2]
[361142448,1747303834186,-450.0,0.00016892,2]
[361142449,1747303834196,-450.0,0.00016892,2]
[361142451,1747303834205,-450.0,0.00016892,2]
[361142452,1747303834215,-450.0,0.00016892,2]
[361142454,1747303834224,-450.0,0.00016892,2]
[361142456,1747303834234,-450.0,0.00016892,2]
[361142457,1747303834244,-450.0,0.00016892,2]
[361142458,1747303834254,-450.0,0.00016892,2]
[361142459,1747303834264,-450.0,0.00016892,2]
[361142460,1747303834274,-450.0,0.00016892,2]
[361142461,1747303834284,-450.0,0.00016892,2]
[361142462,1747303834293,-450.0,0.00016892,2]
[361142463,1747303834303,-472.17584988,0.00016892,2]
[361142464,1747303834314,-450.0,0.00016892,2]
[361142465,1747303834323,-351.45638643,0.00016892,2]
[361142466,1747303834333,-450.0,0.00016892,2]
[361142467,1747303834343,-450.0,0.00016892,2]
[361142468,1747303834352,-450.0,0.00016892,2]
[361142469,1747303834362,-450.0,0.00016892,2]
[361142470,1747303834372,-450.0,0.00016892,2]
[361142471,1747303834382,-450.0,0.00016892,2]
[361142472,1747303834392,-450.0,0.00016892,2]
[361142473,1747303834402,-450.0,0.00016892,2]
[361142474,1747303834412,-450.0,0.00016892,2]
[361142475,1747303834421,-450.0,0.00016892,2]
[361142476,1747303834431,-450.0,0.00016892,2]
[361142477,1747303834441,-450.0,0.00016892,2]
[361142478,1747303834451,-450.0,0.00016892,2]
[361142479,1747303834461,-450.0,0.00016892,2]
[361142480,1747303834470,-450.0,0.00016892,2]
[361142481,1747303834480,-450.0,0.00016892,2]
[361142482,1747303834490,-450.0,0.00016892,2]
[361142483,1747303834500,-450.0,0.00016892,2]
[361142484,1747303834510,-450.0,0.00016892,2]
[361142485,1747303834520,-450.0,0.00016892,2]
[361142486,1747303834529,-450.0,0.00016892,2]
[361142487,1747303834539,-450.0,0.00016892,2]
[361142488,1747303834551,-450.0,0.00016892,2]
[361142489,1747303834565,-450.0,0.00016892,2]
[361142490,1747303834575,-450.0,0.00016892,2]
[361142491,1747303834584,-450.0,0.00016892,2]
[361142492,1747303834594,-400.0,0.00016892,2]
[361142493,1747303834604,-450.0,0.00016892,2]
[361142494,1747303834613,-450.0,0.00016892,2]
[361142495,1747303834623,-450.0,0.00016892,2]
[361142496,1747303834632,-450.0,0.00016892,2]
[361142497,1747303834642,-450.0,0.00016892,2]
[361142498,1747303834652,-450.0,0.00016892,2]
[361142499,1747303834662,-450.0,0.00016892,2]
[361142500,1747303834671,-450.0,0.00016892,2]
[361142501,1747303834680,-450.0,0.00016892,2]
[361142502,1747303834690,-846.01,0.00016892,2]
[361142503,1747303834699,-450.0,0.00016892,2]
[361142504,1747303834710,-450.0,0.00016892,2]
[361142505,1747303834725,-450.0,0.00016892,2]
[361142506,1747303834735,-450.0,0.00016892,2]
[361142507,1747303834744,-450.0,0.00016892,2]
[361142508,1747303834753,-450.0,0.00016892,2]
[361142509,1747303834763,-450.0,0.00016892,2]
[361142510,1747303834772,-450.0,0.00016892,2]
[361142511,1747303834782,-450.0,0.00016892,2]
[361142512,1747303834793,-400.0,0.00016892,2]
[361142513,1747303834803,-293.0777466,0.00016892,2]
[361142514,1747303834813,-450.0,0.00016892,2]
[361142515,1747303834823,-450.0,0.00016892,2]
[361142516,1747303834833,-507.33,0.00016892,2]
[361142517,1747303834843,-450.0,0.00016892,2]
[361142518,1747303834854,-346.0725136,0.00016892,2]
[361142519,1747303834865,-450.0,0.00016892,2]
[361142520,1747303834875,-548.1750229,0.00016892,2]
[361142521,1747303834885,-450.0,0.00016892,2]
[361142522,1747303834894,-450.0,0.00016892,2]
[361142523,1747303834904,-450.0,0.00016892,2]
[361142524,1747303834914,-450.0,0.00016892,2]
[361142525,1747303834924,-450.0,0.00016892,2]
[361142526,1747303834934,-450.0,0.00016892,2]
[361142527,1747303834944,-450.0,0.00016892,2]
[361142528,1747303834954,-450.0,0.00016892,2]
[361142529,1747303834964,-450.0,0.00016892,2]
[361142530,1747303834974,-450.0,0.00016892,2]
[361142531,1747303834984,-450.0,0.00016892,2]
[361142532,1747303834993,-518.66536572,0.00016892,2]
[361142533,1747303835004,-450.0,0.00016892,2]
[361142534,1747303835013,-450.0,0.00016892,2]
[361142535,1747303835022,-495.44,0.00016892,2]
[361142536,1747303835032,-450.0,0.00016892,2]
[361142537,1747303835043,-404.58592375,0.00016892,2]
[361142538,1747303835052,-450.0,0.00016892,2]
[361142539,1747303835062,-450.0,0.00016892,2]
[361142540,1747303835072,-450.0,0.00016892,2]
[361142541,1747303835081,-450.0,0.00016892,2]
[361142542,1747303835090,-450.0,0.00016892,2]
[361142543,1747303835099,-450.0,0.00016892,2]
[361142544,1747303835109,-450.0,0.00016892,2]
[361142545,1747303835119,-450.0,0.00016892,2]
[361142546,1747303835128,-450.0,0.00016892,2]
[361142547,1747303835138,-450.0,0.00016892,2]
[361142548,1747303835147,-450.0,0.00016892,2]
[361142549,1747303835157,-450.0,0.00016892,2]
[361142550,1747303835166,-568.76818091,0.00016892,2]
[361142551,1747303835176,-450.0,0.00016892,2]
[361142552,1747303835186,-450.0,0.00016892,2]
[361142553,1747303835197,-450.0,0.00016892,2]
[361142554,1747303835206,-450.0,0.00016892,2]
[361142555,1747303835216,-450.0,0.00016892,2]
[361142556,1747303835228,-450.0,0.00016892,2]
[361142557,1747303835237,-450.0,0.00016892,2]
[361142558,1747303835247,-450.0,0.00016892,2]
[361142559,1747303835257,-502.16128396,0.00016892,2]
[361142560,1747303835267,-450.0,0.00016892,2]
[361142561,1747303835277,-591.11028764,0.00016892,2]
[361142562,1747303835286,-450.0,0.00016892,2]
[361142563,1747303835295,-450.0,0.00016892,2]